[Event "*** Titled Tuesday Blitz"]
[Site "Chess.com"]
[Date "2018.09.04"]
[Round "2"]
[White "dimke2802"]
[Black "carlovittorino"]
[Result "1-0"]
[WhiteElo "2418"]
[BlackElo "2277"]
[TimeControl "180+2"]
[EndTime "13:55:39 PDT"]
[Termination "dimke2802 won by resignation"]

1. d4 {[%clk 0:03:01.9]} 1... Nf6 {[%clk 0:03:00]} 2. Nf3 {[%clk 0:03:02.3]}
2... b6 {[%clk 0:03:00.1]} 3. c4 {[%clk 0:03:02.7]} 3... e6 {[%clk 0:03:00.3]}
4. a3 {[%clk 0:03:02.4]} 4... Ba6 {[%clk 0:02:53.2]} 5. Qb3 {[%clk 0:03:00.7]}
5... c5 {[%clk 0:02:52.5]} 6. d5 {[%clk 0:03:01.6]} 6... exd5 {[%clk 0:02:53]}
7. cxd5 {[%clk 0:03:03.5]} 7... d6 {[%clk 0:02:52.3]} 8. Bg5 {[%clk 0:02:57.3]}
8... Nbd7 {[%clk 0:02:49.4]} 9. Nc3 {[%clk 0:02:56.4]} 9... Be7 {[%clk
0:02:48.9]} 10. e4 {[%clk 0:02:49.2]} 10... Bxf1 {[%clk 0:02:48.9]} 11. Kxf1
{[%clk 0:02:49.9]} 11... O-O {[%clk 0:02:48]} 12. h3 {[%clk 0:02:35.9]} 12... h6
{[%clk 0:02:37.5]} 13. Be3 {[%clk 0:02:31.6]} 13... Ne8 {[%clk 0:02:36.1]} 14.
g3 {[%clk 0:02:29.1]} 14... Bf6 {[%clk 0:02:34.8]} 15. Nd2 {[%clk 0:02:26.1]}
15... Nc7 {[%clk 0:02:32.5]} 16. Kg2 {[%clk 0:02:23.6]} 16... Re8 {[%clk
0:02:31.3]} 17. Rhe1 {[%clk 0:02:21.1]} 17... b5 {[%clk 0:02:19.4]} 18. a4
{[%clk 0:02:06.9]} 18... b4 {[%clk 0:02:12.9]} 19. Nb5 {[%clk 0:02:07.8]} 19...
Nb6 {[%clk 0:01:57.7]} 20. Nxc7 {[%clk 0:02:02.7]} 20... Qxc7 {[%clk 0:01:58.2]}
21. a5 {[%clk 0:02:02.4]} 21... Nd7 {[%clk 0:01:58.6]} 22. f4 {[%clk 0:02:00.2]}
22... Re7 {[%clk 0:01:57]} 23. Bf2 {[%clk 0:02:00.2]} 23... Rae8 {[%clk
0:01:57.5]} 24. Qc2 {[%clk 0:01:57.2]} 24... g6 {[%clk 0:01:44.6]} 25. Nc4
{[%clk 0:01:56.5]} 25... Bg7 {[%clk 0:01:45.1]} 26. Rad1 {[%clk 0:01:39.3]}
26... Nf6 {[%clk 0:01:29.1]} 27. e5 {[%clk 0:01:35.8]} 27... dxe5 {[%clk
0:01:29.5]} 28. fxe5 {[%clk 0:01:32.7]} 28... Rxe5 {[%clk 0:01:25.8]} 29. Nxe5
{[%clk 0:01:31.9]} 29... Rxe5 {[%clk 0:01:26.5]} 30. d6 {[%clk 0:01:25.4]} 30...
Qc6+ {[%clk 0:01:26.6]} 31. Kh2 {[%clk 0:01:20.8]} 31... Nd7 {[%clk 0:01:13.7]}
32. Rxe5 {[%clk 0:01:05.3]} 32... Nxe5 {[%clk 0:01:13.9]} 33. Qxc5 {[%clk
0:01:03.7]} 33... Nf3+ {[%clk 0:01:13.3]} 34. Kh1 {[%clk 0:01:04.4]} 34... Qe4
{[%clk 0:01:13.9]} 35. Qd5 {[%clk 0:00:30.2]} 35... Qe2 {[%clk 0:01:13]} 36. Kg2
{[%clk 0:00:31.2]} 36... Bd4 {[%clk 0:00:49.9]} 37. Qxf3 {[%clk 0:00:25.1]} 1-0

[Event "*** Titled Tuesday Blitz"]
[Site "Chess.com"]
[Date "2018.09.04"]
[Round "2"]
[White "Winehouse83"]
[Black "enriquetejedor"]
[Result "1-0"]
[WhiteElo "2472"]
[BlackElo "2453"]
[TimeControl "180+2"]
[EndTime "13:55:45 PDT"]
[Termination "Winehouse83 won by resignation"]

1. d4 {[%clk 0:03:01.9]} 1... Nf6 {[%clk 0:02:54.2]} 2. c4 {[%clk 0:03:00.7]}
2... e6 {[%clk 0:02:54]} 3. Nf3 {[%clk 0:03:00.5]} 3... b6 {[%clk 0:02:48.7]} 4.
a3 {[%clk 0:03:01.2]} 4... Bb7 {[%clk 0:02:48.8]} 5. Nc3 {[%clk 0:03:02.5]} 5...
d5 {[%clk 0:02:48.7]} 6. cxd5 {[%clk 0:03:03.5]} 6... exd5 {[%clk 0:02:48.5]} 7.
Bf4 {[%clk 0:03:03.5]} 7... a6 {[%clk 0:02:44.8]} 8. g3 {[%clk 0:02:56.6]} 8...
Bd6 {[%clk 0:02:42.5]} 9. Bxd6 {[%clk 0:02:56.3]} 9... Qxd6 {[%clk 0:02:44.4]}
10. Bg2 {[%clk 0:02:57.8]} 10... O-O {[%clk 0:02:44]} 11. O-O {[%clk 0:02:58.4]}
11... Nbd7 {[%clk 0:02:44]} 12. Rc1 {[%clk 0:02:58.8]} 12... c5 {[%clk
0:02:08.5]} 13. dxc5 {[%clk 0:02:54.8]} 13... bxc5 {[%clk 0:01:47.2]} 14. e3
{[%clk 0:02:55.5]} 14... Rfd8 {[%clk 0:01:43.5]} 15. Ne2 {[%clk 0:02:52]} 15...
Rac8 {[%clk 0:01:43.4]} 16. Nf4 {[%clk 0:02:47.3]} 16... Qb6 {[%clk 0:01:43]}
17. b4 {[%clk 0:02:40.6]} 17... cxb4 {[%clk 0:01:40.7]} 18. axb4 {[%clk
0:02:42.5]} 18... h6 {[%clk 0:01:37.8]} 19. Qd4 {[%clk 0:02:38.5]} 19... Qb5
{[%clk 0:01:27.4]} 20. Rfd1 {[%clk 0:02:33.1]} 20... Rc4 {[%clk 0:01:24.6]} 21.
Rxc4 {[%clk 0:02:29.8]} 21... Qxc4 {[%clk 0:01:21.8]} 22. Bf1 {[%clk 0:02:20.9]}
22... Qxd4 {[%clk 0:01:20.7]} 23. Nxd4 {[%clk 0:02:22.8]} 23... Rc8 {[%clk
0:01:21.2]} 24. Nf5 {[%clk 0:02:22.7]} 24... Kf8 {[%clk 0:01:20.8]} 25. Nd6
{[%clk 0:02:22.9]} 25... Rc7 {[%clk 0:01:21.8]} 26. Nxb7 {[%clk 0:02:23.9]}
26... Rxb7 {[%clk 0:01:23.7]} 27. Nxd5 {[%clk 0:02:24.8]} 27... Nxd5 {[%clk
0:01:23.5]} 28. Rxd5 {[%clk 0:02:25.4]} 28... Nf6 {[%clk 0:01:21.5]} 29. Rd4
{[%clk 0:02:24.8]} 29... Rb6 {[%clk 0:01:19.7]} 30. h4 {[%clk 0:02:25]} 30...
Ke7 {[%clk 0:01:20.5]} 31. Kg2 {[%clk 0:02:25.3]} 31... Nd7 {[%clk 0:01:14.3]}
32. f4 {[%clk 0:02:17]} 32... Nb8 {[%clk 0:01:14.1]} 33. Re4+ {[%clk 0:02:15.2]}
33... Re6 {[%clk 0:01:13.2]} 34. Rxe6+ {[%clk 0:02:14.3]} 34... fxe6 {[%clk
0:01:02.2]} 35. Kf3 {[%clk 0:02:12.3]} 35... Nc6 {[%clk 0:00:59.6]} 36. Bxa6
{[%clk 0:02:12.6]} 36... Nxb4 {[%clk 0:01:01.2]} 37. Bb7 {[%clk 0:02:14]} 37...
Nd3 {[%clk 0:01:00.7]} 38. Kg4 {[%clk 0:02:09.8]} 38... Kf6 {[%clk 0:00:59.4]}
39. Kh5 {[%clk 0:02:08.6]} 39... Kf5 {[%clk 0:00:57.7]} 40. g4+ {[%clk
0:02:00.6]} 40... Kf6 {[%clk 0:00:59.1]} 41. Bc6 {[%clk 0:01:54.1]} 41... e5
{[%clk 0:00:57.1]} 42. g5+ {[%clk 0:01:52.7]} 42... hxg5 {[%clk 0:00:57.9]} 43.
fxg5+ {[%clk 0:01:52.9]} 43... Kf7 {[%clk 0:00:56.7]} 44. Bd5+ {[%clk 0:01:54]}
44... Kf8 {[%clk 0:00:57.3]} 45. Kg6 {[%clk 0:01:54.1]} 45... Nf2 {[%clk
0:00:57]} 46. h5 {[%clk 0:01:51.2]} 46... Ng4 {[%clk 0:00:57]} 47. h6 {[%clk
0:01:50.6]} 47... gxh6 {[%clk 0:00:58.2]} 48. gxh6 {[%clk 0:01:52.1]} 48... Nxe3
{[%clk 0:00:59.3]} 49. h7 {[%clk 0:01:52.5]} 49... Ke7 {[%clk 0:00:54.4]} 50.
Be4 {[%clk 0:01:49.5]} 50... Kd6 {[%clk 0:00:51.3]} 51. h8=Q {[%clk 0:01:50.5]}
51... Nc4 {[%clk 0:00:52.1]} 52. Qd8+ {[%clk 0:01:49.2]} 52... Kc5 {[%clk
0:00:51.6]} 53. Qd5+ {[%clk 0:01:49.1]} 53... Kb4 {[%clk 0:00:52.4]} 54. Bd3
{[%clk 0:01:49.7]} 54... Nb2 {[%clk 0:00:53.7]} 55. Qxe5 {[%clk 0:01:47.3]}
55... Kb3 {[%clk 0:00:53.8]} 56. Be4 {[%clk 0:01:47]} 56... Na4 {[%clk
0:00:52.6]} 57. Qb5+ {[%clk 0:01:45.7]} 57... Ka3 {[%clk 0:00:53.3]} 58. Bc2
{[%clk 0:01:46.2]} 58... Nc5 {[%clk 0:00:54.1]} 59. Qxc5+ {[%clk 0:01:46.6]}
59... Kb2 {[%clk 0:00:55.1]} 60. Bd3 {[%clk 0:01:47.3]} 60... Ka2 {[%clk
0:00:56.2]} 61. Qb4 {[%clk 0:01:46.3]} 1-0

[Event "*** Titled Tuesday Blitz"]
[Site "Chess.com"]
[Date "2018.09.04"]
[Round "2"]
[White "JozefKneht"]
[Black "amiralfio"]
[Result "1-0"]
[WhiteElo "2494"]
[BlackElo "2446"]
[TimeControl "180+2"]
[EndTime "13:55:49 PDT"]
[Termination "JozefKneht won by checkmate"]

1. Nf3 {[%clk 0:03:01.9]} 1... c5 {[%clk 0:02:59.9]} 2. e4 {[%clk 0:03:02.1]}
2... d6 {[%clk 0:03:00.1]} 3. d4 {[%clk 0:03:03]} 3... Nf6 {[%clk 0:03:00.8]} 4.
Nc3 {[%clk 0:03:03]} 4... cxd4 {[%clk 0:03:00.7]} 5. Nxd4 {[%clk 0:03:04.9]}
5... a6 {[%clk 0:03:02.1]} 6. Bg5 {[%clk 0:03:05.5]} 6... Nbd7 {[%clk
0:02:57.8]} 7. f4 {[%clk 0:03:05.4]} 7... Qc7 {[%clk 0:02:57.9]} 8. Qf3 {[%clk
0:03:05.5]} 8... h6 {[%clk 0:02:57.5]} 9. Bxf6 {[%clk 0:03:04.7]} 9... Nxf6
{[%clk 0:02:56]} 10. f5 {[%clk 0:03:05]} 10... Bd7 {[%clk 0:02:50.6]} 11. O-O-O
{[%clk 0:03:03.4]} 11... e5 {[%clk 0:02:51.1]} 12. fxe6 {[%clk 0:03:02.4]} 12...
fxe6 {[%clk 0:02:52]} 13. Kb1 {[%clk 0:02:28.2]} 13... O-O-O {[%clk 0:02:51.5]}
14. Bd3 {[%clk 0:02:24.5]} 14... h5 {[%clk 0:02:38.1]} 15. Qe2 {[%clk
0:02:15.9]} 15... Ng4 {[%clk 0:02:32.6]} 16. Nf3 {[%clk 0:02:13.7]} 16... Be7
{[%clk 0:02:30.3]} 17. h3 {[%clk 0:02:10.4]} 17... Ne5 {[%clk 0:02:25.8]} 18.
Nxe5 {[%clk 0:02:10.9]} 18... dxe5 {[%clk 0:02:27.7]} 19. Qe3 {[%clk 0:02:02.7]}
19... Qc5 {[%clk 0:02:09.9]} 20. Qg3 {[%clk 0:01:58.4]} 20... h4 {[%clk
0:02:05]} 21. Qg4 {[%clk 0:01:57.7]} 21... Rhf8 {[%clk 0:01:50.1]} 22. Ne2
{[%clk 0:01:54.4]} 22... g5 {[%clk 0:01:06.7]} 23. Rhf1 {[%clk 0:01:36.7]} 23...
Rf2 {[%clk 0:01:02.4]} 24. Rxf2 {[%clk 0:01:33.4]} 24... Qxf2 {[%clk 0:01:04.3]}
25. Ng1 {[%clk 0:01:20.2]} 25... Rf8 {[%clk 0:00:58.7]} 26. Ne2 {[%clk
0:01:00.3]} 26... Qe3 {[%clk 0:00:49.8]} 27. a3 {[%clk 0:00:59.8]} 27... Rf2
{[%clk 0:00:49.7]} 28. Bc4 {[%clk 0:00:40]} 28... Qb6 {[%clk 0:00:42.3]} 29. Bb3
{[%clk 0:00:35]} 29... a5 {[%clk 0:00:38.4]} 30. Nc3 {[%clk 0:00:34.7]} 30...
Bxa3 {[%clk 0:00:11.4]} 31. bxa3 {[%clk 0:00:34.3]} 31... a4 {[%clk 0:00:12.5]}
32. Nxa4 {[%clk 0:00:32.1]} 32... Bxa4 {[%clk 0:00:12.4]} 33. Qxg5 {[%clk
0:00:26.7]} 33... Bxb3 {[%clk 0:00:11.5]} 34. Qg8+ {[%clk 0:00:27.1]} 34... Kc7
{[%clk 0:00:12.2]} 35. Qd8+ {[%clk 0:00:28.6]} 35... Kc6 {[%clk 0:00:13.5]} 36.
Rd6+ {[%clk 0:00:27.4]} 36... Kc5 {[%clk 0:00:14.7]} 37. Qxb6+ {[%clk
0:00:28.9]} 37... Kc4 {[%clk 0:00:16.2]} 38. Qxb3+ {[%clk 0:00:29.5]} 38... Kc5
{[%clk 0:00:17.7]} 39. Qb4# {[%clk 0:00:30.4]} 1-0

[Event "*** Titled Tuesday Blitz"]
[Site "Chess.com"]
[Date "2018.09.04"]
[Round "2"]
[White "BilodeauA"]
[Black "HonzaVykouk"]
[Result "1-0"]
[WhiteElo "2776"]
[BlackElo "2541"]
[TimeControl "180+2"]
[EndTime "13:55:53 PDT"]
[Termination "BilodeauA won by resignation"]

1. e4 {[%clk 0:03:01.9]} 1... c5 {[%clk 0:02:57.5]} 2. Nf3 {[%clk 0:03:02.2]}
2... d6 {[%clk 0:02:57.8]} 3. d4 {[%clk 0:03:03.1]} 3... cxd4 {[%clk 0:02:58]}
4. Nxd4 {[%clk 0:03:05]} 4... Nf6 {[%clk 0:02:59.4]} 5. Nc3 {[%clk 0:03:06.1]}
5... a6 {[%clk 0:03:00.8]} 6. Be2 {[%clk 0:03:07.1]} 6... e5 {[%clk 0:03:00.7]}
7. Nb3 {[%clk 0:03:07.9]} 7... Be7 {[%clk 0:03:02]} 8. O-O {[%clk 0:03:08.6]}
8... O-O {[%clk 0:03:02.6]} 9. Kh1 {[%clk 0:03:07.8]} 9... b6 {[%clk 0:03:03.5]}
10. Bg5 {[%clk 0:03:02.6]} 10... Nbd7 {[%clk 0:03:01.7]} 11. a4 {[%clk
0:03:01.5]} 11... Bb7 {[%clk 0:02:49.2]} 12. f3 {[%clk 0:03:02.6]} 12... Re8
{[%clk 0:02:47.5]} 13. Be3 {[%clk 0:02:59.7]} 13... Rc8 {[%clk 0:02:47.8]} 14.
Rf2 {[%clk 0:02:57.7]} 14... Qc7 {[%clk 0:02:46.1]} 15. Bf1 {[%clk 0:02:57.8]}
15... Red8 {[%clk 0:02:42.1]} 16. Rd2 {[%clk 0:02:58.5]} 16... Qb8 {[%clk
0:02:40.3]} 17. Be2 {[%clk 0:02:56.5]} 17... Qa8 {[%clk 0:02:38.8]} 18. Qf1
{[%clk 0:02:20.1]} 18... d5 {[%clk 0:02:13.8]} 19. exd5 {[%clk 0:01:57.8]} 19...
Bxd5 {[%clk 0:02:13.5]} 20. Bxa6 {[%clk 0:01:55]} 20... Rc7 {[%clk 0:02:11.3]}
21. Rad1 {[%clk 0:01:52.2]} 21... Be6 {[%clk 0:02:09.1]} 22. Bb5 {[%clk
0:01:45.3]} 22... Rdc8 {[%clk 0:02:09.8]} 23. Qf2 {[%clk 0:01:34.2]} 23... Bb4
{[%clk 0:02:04.8]} 24. Bxb6 {[%clk 0:01:31.7]} 24... Bxc3 {[%clk 0:02:03.2]} 25.
bxc3 {[%clk 0:01:29.9]} 25... Rxc3 {[%clk 0:02:02.7]} 26. a5 {[%clk 0:01:22.9]}
26... Nxb6 {[%clk 0:02:00.9]} 27. axb6 {[%clk 0:01:21.6]} 27... Bd5 {[%clk
0:01:58.5]} 28. Be2 {[%clk 0:00:55.4]} 28... Rxc2 {[%clk 0:01:55.7]} 29. Rxc2
{[%clk 0:00:50]} 29... Rxc2 {[%clk 0:01:57.5]} 30. Qe3 {[%clk 0:00:44.2]} 30...
Qb8 {[%clk 0:01:35.8]} 31. Na5 {[%clk 0:00:42.4]} 31... Rb2 {[%clk 0:01:32.7]}
32. b7 {[%clk 0:00:27.8]} 32... Bxb7 {[%clk 0:01:30.4]} 33. Nc4 {[%clk
0:00:28.6]} 33... Nd5 {[%clk 0:01:28.1]} 34. Qd3 {[%clk 0:00:20.1]} 34... Ra2
{[%clk 0:01:23]} 35. Ne3 {[%clk 0:00:21.4]} 35... g6 {[%clk 0:01:14.1]} 36. Ng4
{[%clk 0:00:18.5]} 36... Nf4 {[%clk 0:01:12.4]} 37. Qb3 {[%clk 0:00:15.3]} 37...
Rxe2 {[%clk 0:01:08.8]} 38. Nh6+ {[%clk 0:00:16.6]} 38... Kg7 {[%clk 0:01:03.7]}
39. Qxf7+ {[%clk 0:00:14.4]} 39... Kxh6 {[%clk 0:01:03.9]} 40. Qf6 {[%clk
0:00:15.4]} 40... Rxg2 {[%clk 0:00:56.5]} 41. Qh4+ {[%clk 0:00:16]} 41... Kg7
{[%clk 0:00:57.1]} 42. Rd7+ {[%clk 0:00:16.4]} 1-0

[Event "*** Titled Tuesday Blitz"]
[Site "Chess.com"]
[Date "2018.09.04"]
[Round "2"]
[White "MaxLeto"]
[Black "Kurai"]
[Result "0-1"]
[WhiteElo "2364"]
[BlackElo "2464"]
[TimeControl "180+2"]
[EndTime "13:55:55 PDT"]
[Termination "Kurai won on time"]

1. h4 {[%clk 0:02:53.1]} 1... d5 {[%clk 0:03:00.3]} 2. h5 {[%clk 0:02:54.6]}
2... e5 {[%clk 0:03:01.3]} 3. c3 {[%clk 0:02:55.6]} 3... Nc6 {[%clk 0:02:58.4]}
4. d4 {[%clk 0:02:56.4]} 4... h6 {[%clk 0:02:58.4]} 5. dxe5 {[%clk 0:02:57.9]}
5... Nxe5 {[%clk 0:02:58.7]} 6. Bf4 {[%clk 0:02:59.6]} 6... Bd6 {[%clk
0:02:59.9]} 7. Qxd5 {[%clk 0:02:50.6]} 7... Nf6 {[%clk 0:03:00.9]} 8. Qd4 {[%clk
0:02:07.1]} 8... Qe7 {[%clk 0:03:00.3]} 9. e3 {[%clk 0:01:39.4]} 9... O-O {[%clk
0:02:59.3]} 10. Nd2 {[%clk 0:01:22.4]} 10... Bg4 {[%clk 0:02:38.8]} 11. Ngf3
{[%clk 0:00:34.8]} 11... Nxf3+ {[%clk 0:02:00.1]} 12. gxf3 {[%clk 0:00:33.9]}
12... Bxf4 {[%clk 0:01:09.2]} 13. Qxf4 {[%clk 0:00:29.7]} 13... Bxh5 {[%clk
0:01:05.1]} 14. O-O-O {[%clk 0:00:30.5]} 14... Bg6 {[%clk 0:01:05.2]} 15. Bc4
{[%clk 0:00:30]} 15... Rad8 {[%clk 0:00:53.4]} 16. Rdg1 {[%clk 0:00:31.3]} 16...
Kh7 {[%clk 0:00:54.2]} 17. e4 {[%clk 0:00:22.9]} 17... Nd7 {[%clk 0:00:54]} 18.
Nb3 {[%clk 0:00:14.7]} 18... Ne5 {[%clk 0:00:54.5]} 19. Be2 {[%clk 0:00:15.2]}
19... Qd6 {[%clk 0:00:53.6]} 20. Kb1 {[%clk 0:00:13]} 20... f5 {[%clk
0:00:48.2]} 21. Qh4 {[%clk 0:00:05.4]} 21... fxe4 {[%clk 0:00:37]} 22. fxe4
{[%clk 0:00:07.3]} 22... Qf6 {[%clk 0:00:38.6]} 23. f3 {[%clk 0:00:03.7]} 23...
Qxh4 {[%clk 0:00:37.2]} 24. Rxh4 {[%clk 0:00:04.6]} 24... Nxf3 {[%clk
0:00:38.7]} 25. Bxf3 {[%clk 0:00:04.9]} 25... Rxf3 {[%clk 0:00:40.6]} 26. Rhg4
{[%clk 0:00:06.1]} 26... Rd6 {[%clk 0:00:32.1]} 27. Ka1 {[%clk 0:00:05.2]} 27...
Re3 {[%clk 0:00:26.6]} 28. Nc5 {[%clk 0:00:03.4]} 28... b6 {[%clk 0:00:25.4]}
29. Nb7 {[%clk 0:00:04.6]} 29... Rd7 {[%clk 0:00:21.5]} 30. a3 {[%clk
0:00:04.1]} 30... Bxe4 {[%clk 0:00:21.8]} 31. Nd8 {[%clk 0:00:04.5]} 31... Bd5
{[%clk 0:00:16.2]} 0-1

[Event "*** Titled Tuesday Blitz"]
[Site "Chess.com"]
[Date "2018.09.04"]
[Round "2"]
[White "martinmartinez95"]
[Black "b_6"]
[Result "1-0"]
[WhiteElo "2432"]
[BlackElo "2393"]
[TimeControl "180+2"]
[EndTime "13:56:03 PDT"]
[Termination "martinmartinez95 won by resignation"]

1. d4 {[%clk 0:03:01.9]} 1... d5 {[%clk 0:02:59.9]} 2. c4 {[%clk 0:02:55.6]}
2... c6 {[%clk 0:02:56]} 3. Nc3 {[%clk 0:02:52.3]} 3... dxc4 {[%clk 0:02:55.5]}
4. a4 {[%clk 0:02:48]} 4... e5 {[%clk 0:02:55.6]} 5. e3 {[%clk 0:02:48.2]} 5...
exd4 {[%clk 0:02:53.9]} 6. exd4 {[%clk 0:02:49]} 6... Be6 {[%clk 0:02:55.1]} 7.
Nf3 {[%clk 0:02:39]} 7... Nf6 {[%clk 0:02:55.7]} 8. Ng5 {[%clk 0:02:39.2]} 8...
Bd5 {[%clk 0:02:56.4]} 9. Be2 {[%clk 0:02:27.6]} 9... Bd6 {[%clk 0:02:47.7]} 10.
O-O {[%clk 0:02:27.4]} 10... O-O {[%clk 0:02:48]} 11. f3 {[%clk 0:02:24.9]}
11... Re8 {[%clk 0:02:37.9]} 12. a5 {[%clk 0:02:10]} 12... Nbd7 {[%clk 0:02:32]}
13. Qc2 {[%clk 0:01:56]} 13... h6 {[%clk 0:02:13.4]} 14. Nge4 {[%clk 0:01:54.8]}
14... Nxe4 {[%clk 0:02:12.8]} 15. fxe4 {[%clk 0:01:53.2]} 15... Qh4 {[%clk
0:02:10.8]} 16. h3 {[%clk 0:01:41.3]} 16... Qg3 {[%clk 0:01:48.3]} 17. Rf3
{[%clk 0:01:35.1]} 17... Qh2+ {[%clk 0:01:47.7]} 18. Kf2 {[%clk 0:01:36.1]}
18... Be6 {[%clk 0:01:23.2]} 19. e5 {[%clk 0:01:33.9]} 19... Nxe5 {[%clk
0:01:07.2]} 20. dxe5 {[%clk 0:01:27.5]} 20... Bxe5 {[%clk 0:01:07.5]} 21. Be3
{[%clk 0:01:23.3]} 21... g5 {[%clk 0:00:41.6]} 22. Qe4 {[%clk 0:01:08.4]} 22...
f5 {[%clk 0:00:37]} 23. Qc2 {[%clk 0:00:56.9]} 23... Rf8 {[%clk 0:00:20.8]} 24.
Ra4 {[%clk 0:00:55.1]} 24... Rf6 {[%clk 0:00:19.5]} 25. Bxc4 {[%clk 0:00:54.7]}
25... Bxc4 {[%clk 0:00:20.7]} 26. Rxc4 {[%clk 0:00:55.5]} 26... Raf8 {[%clk
0:00:22.4]} 27. Rc5 {[%clk 0:00:54.9]} 27... g4 {[%clk 0:00:22.9]} 28. Rxe5
{[%clk 0:00:16]} 28... Qxe5 {[%clk 0:00:22.7]} 29. Bf4 {[%clk 0:00:17.1]} 29...
Qc5+ {[%clk 0:00:23.1]} 30. Re3 {[%clk 0:00:18.3]} 30... gxh3 {[%clk 0:00:22.5]}
31. gxh3 {[%clk 0:00:18.8]} 31... Rg6 {[%clk 0:00:22.7]} 32. Kf3 {[%clk
0:00:19.4]} 32... Kh7 {[%clk 0:00:18.3]} 33. Qb3 {[%clk 0:00:20.2]} 33... Rfg8
{[%clk 0:00:19.1]} 34. Qxb7+ {[%clk 0:00:19.2]} 34... R8g7 {[%clk 0:00:20.5]}
35. Qc8 {[%clk 0:00:19.5]} 35... Qc4 {[%clk 0:00:21.5]} 36. Qxf5 {[%clk
0:00:19.2]} 36... Qf1+ {[%clk 0:00:22.5]} 37. Ke4 {[%clk 0:00:20.4]} 37... Re7+
{[%clk 0:00:23.5]} 38. Be5 {[%clk 0:00:21.2]} 38... Qg2+ {[%clk 0:00:21.8]} 39.
Kd3 {[%clk 0:00:21.1]} 39... Qh1 {[%clk 0:00:19.4]} 40. Bd4 {[%clk 0:00:21.4]}
40... Re6 {[%clk 0:00:19]} 41. Rxe6 {[%clk 0:00:21.7]} 1-0

[Event "*** Titled Tuesday Blitz"]
[Site "Chess.com"]
[Date "2018.09.04"]
[Round "2"]
[White "sergiochess83"]
[Black "Eagle_pada"]
[Result "1-0"]
[WhiteElo "2723"]
[BlackElo "2658"]
[TimeControl "180+2"]
[EndTime "13:56:09 PDT"]
[Termination "sergiochess83 won by resignation"]

1. e4 {[%clk 0:03:01.9]} 1... e5 {[%clk 0:02:56.6]} 2. Nf3 {[%clk 0:03:02.7]}
2... Nf6 {[%clk 0:02:57.3]} 3. Nxe5 {[%clk 0:02:58.8]} 3... d6 {[%clk
0:02:58.3]} 4. Nf3 {[%clk 0:02:58.6]} 4... Nxe4 {[%clk 0:02:59.8]} 5. c4 {[%clk
0:02:53.1]} 5... Nc6 {[%clk 0:02:55.4]} 6. d3 {[%clk 0:02:51.5]} 6... Nf6 {[%clk
0:02:56]} 7. d4 {[%clk 0:02:53]} 7... Be7 {[%clk 0:02:54.9]} 8. d5 {[%clk
0:02:53.8]} 8... Ne5 {[%clk 0:02:55.8]} 9. Be2 {[%clk 0:02:51]} 9... O-O {[%clk
0:02:54.8]} 10. O-O {[%clk 0:02:52]} 10... Nxf3+ {[%clk 0:02:53.8]} 11. Bxf3
{[%clk 0:02:52.8]} 11... Nd7 {[%clk 0:02:55.7]} 12. Nc3 {[%clk 0:02:53.6]} 12...
Ne5 {[%clk 0:02:54.6]} 13. Be2 {[%clk 0:02:54.6]} 13... f5 {[%clk 0:02:55.8]}
14. f4 {[%clk 0:02:50.8]} 14... Ng4 {[%clk 0:02:50.6]} 15. h3 {[%clk 0:02:39.9]}
15... Nf6 {[%clk 0:02:51.6]} 16. Be3 {[%clk 0:02:41]} 16... a5 {[%clk
0:02:40.3]} 17. Bf3 {[%clk 0:02:39.7]} 17... Nd7 {[%clk 0:02:40.3]} 18. Nb5
{[%clk 0:02:35.4]} 18... Nc5 {[%clk 0:02:40.6]} 19. Qc2 {[%clk 0:02:33]} 19...
Bf6 {[%clk 0:02:40.6]} 20. Rad1 {[%clk 0:02:33.5]} 20... Re8 {[%clk 0:02:40.7]}
21. Bxc5 {[%clk 0:02:22.3]} 21... dxc5 {[%clk 0:02:42.6]} 22. d6 {[%clk
0:02:23.7]} 22... cxd6 {[%clk 0:02:25.3]} 23. Nxd6 {[%clk 0:02:18.1]} 23... Bd4+
{[%clk 0:01:49.9]} 24. Rxd4 {[%clk 0:02:18.1]} 24... cxd4 {[%clk 0:01:51.8]} 25.
Nxe8 {[%clk 0:02:11.7]} 25... Qxe8 {[%clk 0:01:53.7]} 26. Qd3 {[%clk 0:02:06]}
26... Be6 {[%clk 0:01:22.1]} 27. Re1 {[%clk 0:01:59.3]} 27... Ra6 {[%clk
0:00:50.3]} 28. Qxd4 {[%clk 0:01:38.2]} 28... Qd7 {[%clk 0:00:43.9]} 29. Qxd7
{[%clk 0:01:34.2]} 29... Bxd7 {[%clk 0:00:45.8]} 30. Bxb7 {[%clk 0:01:35]} 30...
Rb6 {[%clk 0:00:46.6]} 31. Bd5+ {[%clk 0:01:35.7]} 31... Kf8 {[%clk 0:00:48.1]}
32. b3 {[%clk 0:01:33.1]} 32... a4 {[%clk 0:00:49.4]} 33. Re3 {[%clk 0:01:32.2]}
33... axb3 {[%clk 0:00:38.4]} 34. axb3 {[%clk 0:01:27.3]} 34... Ra6 {[%clk
0:00:39.7]} 35. b4 {[%clk 0:01:23.2]} 35... Ra2 {[%clk 0:00:38.4]} 36. b5 {[%clk
0:00:55.5]} 36... Rb2 {[%clk 0:00:37]} 37. Kf1 {[%clk 0:00:54.4]} 37... h6
{[%clk 0:00:27.6]} 38. Ke1 {[%clk 0:00:53.9]} 38... g5 {[%clk 0:00:29.1]} 39.
Kd1 {[%clk 0:00:44.1]} 39... gxf4 {[%clk 0:00:25.3]} 40. Re2 {[%clk 0:00:45.1]}
40... Rb3 {[%clk 0:00:23]} 41. Kc2 {[%clk 0:00:44.4]} 41... Rb4 {[%clk
0:00:21.3]} 42. Kc3 {[%clk 0:00:41.9]} 42... Rb1 {[%clk 0:00:22.4]} 43. Rb2
{[%clk 0:00:41.9]} 43... Rc1+ {[%clk 0:00:23]} 44. Kd4 {[%clk 0:00:42.5]} 44...
Ke7 {[%clk 0:00:23.8]} 45. b6 {[%clk 0:00:41.8]} 45... Kd6 {[%clk 0:00:24.2]}
46. b7 {[%clk 0:00:38.7]} 46... Rd1+ {[%clk 0:00:24.7]} 47. Kc3 {[%clk
0:00:39.6]} 47... Rc1+ {[%clk 0:00:25.9]} 48. Kd2 {[%clk 0:00:40.5]} 1-0